fUSD/lending_fUSD_20260127
["ID","MTS","AMOUNT","RATE_DAILY","PERIOD"]
[403767530,1769527839032,-500.0,0.00016373,2]
[403767531,1769527839042,-250.0,0.00016391,2]
[403767532,1769527839051,-600.0,0.00016391,2]
[403767533,1769527839061,-195.0,0.00016391,2]
[403767534,1769527839072,-600.0,0.00016391,2]
[403767535,1769527839082,-150.0,0.00016415,2]
[403767536,1769527839091,-500.0,0.00016437,2]
[403767537,1769527839101,-363.89116465,0.00016437,2]
[403767538,1769527839111,-321.11501812,0.00016437,2]
[403767539,1769527839121,-552.65025371,0.00016437,2]
[403767540,1769527839134,-500.0,0.00016437,2]
[403767541,1769527839144,-500.0,0.00016438,2]
[403767542,1769527839153,-500.0,0.00016438,2]
[403767543,1769527839163,-500.0,0.00016438,2]
[403767544,1769527839176,-500.0,0.00016438,2]
[403767545,1769527839186,-500.0,0.00016438,2]
[403767546,1769527839195,-500.0,0.00016438,2]
[403767547,1769527839205,-500.0,0.00016438,2]
[403767548,1769527839215,-500.0,0.00016438,2]
[403767549,1769527839224,-500.0,0.00016438,2]
[403767550,1769527839237,-500.0,0.00016438,2]
[403767551,1769527839247,-500.0,0.00016438,2]
[403767552,1769527839258,-500.0,0.00016438,2]
[403767553,1769527839267,-500.0,0.00016438,2]
[403767554,1769527839277,-500.0,0.00016438,2]
[403767555,1769527839287,-500.0,0.00016438,2]
[403767556,1769527839296,-500.0,0.00016438,2]
[403767557,1769527839307,-287.80373912,0.00016438,2]
[403767558,1769527839317,-500.0,0.00016438,2]
[403767559,1769527839327,-500.0,0.00016438,2]
[403767560,1769527839336,-500.0,0.00016438,2]
[403767561,1769527839349,-500.0,0.00016438,2]
[403767562,1769527839359,-500.0,0.00016438,2]
[403767563,1769527839369,-500.0,0.00016438,2]
[403767564,1769527839384,-500.0,0.00016438,2]
[403767565,1769527839394,-500.0,0.00016438,2]
[403767566,1769527839404,-332.05,0.00016463,2]
[403767567,1769527839414,-150.00001761,0.00016474,2]
[403767568,1769527839424,-1680.0,0.00016499,2]
[403767569,1769527839434,-166.66,0.00016501,2]
[403767570,1769527839443,-274.04,0.00016594,2]
[403767571,1769527839453,-4349.33,0.000166,2]
[403767572,1769527839462,-295.611,0.000166,2]
[403767573,1769527839472,-166.66,0.00016605,2]
[403767574,1769527839482,-854.2589148,0.00016718,2]
[403767575,1769527839492,-166.66,0.00016822,2]
[403767576,1769527839502,-274.06,0.00016868,2]
[403767577,1769527839513,-334.5472959,0.00016897,2]
[403767578,1769527839523,-187.78066829,0.00016921,2]
[403767579,1769527839534,-29030.30673408,0.00017,2]
[403767580,1769527839544,-250.0,0.00017,2]
[403767581,1769527839554,-935.0,0.00017149,2]
[403767582,1769527839564,-885.86649465,0.00017266,2]
[403767583,1769527839577,-166.66,0.0001729,2]
[403767584,1769527839587,-380.0,0.0001748,2]
[403767585,1769527839597,-38640.0,0.000175,2]
[403767586,1769527839607,-380.0,0.00017504,2]
[403767587,1769527839616,-380.0,0.00017507,2]
[403767588,1769527839627,-380.0,0.00017532,2]
[403767589,1769527839638,-380.0,0.00017539,2]
[403767590,1769527839649,-380.0,0.00017568,2]
[403767591,1769527839658,-380.0,0.00017585,2]
[403767592,1769527839668,-380.0,0.00017597,2]
[403767593,1769527839678,-240.5,0.00017633,2]
[403767594,1769527839688,-380.0,0.00017676,2]
[403767595,1769527839698,-380.0,0.00017689,2]
[403767596,1769527839709,-150.0,0.00017699,2]
[403767597,1769527839718,-500.0,0.00017699,2]
[403767598,1769527839728,-150.0,0.00017699,2]
[403767599,1769527839739,-230.04153291,0.00017699,2]
[403767600,1769527839749,-150.0,0.00017699,2]
[403767601,1769527839759,-150.0,0.00017699,2]
[403767602,1769527839769,-500.0,0.00017699,2]
[403767603,1769527839779,-150.0,0.00017699,2]
[403767604,1769527839790,-150.0,0.00017699,2]
[403767605,1769527839800,-150.0,0.00017699,2]
[403767606,1769527839811,-150.50268602,0.00017699,2]
[403767607,1769527839821,-150.0,0.00017699,2]
[403767608,1769527839832,-500.0,0.00017699,2]
[403767609,1769527839842,-155.44287268,0.00017699,2]
[403767610,1769527839852,-500.0,0.00017699,2]
[403767611,1769527839862,-150.0,0.00017699,2]
[403767612,1769527839871,-239.88573265,0.00017699,2]
[403767613,1769527839882,-500.0,0.00017699,2]
[403767614,1769527839892,-150.0,0.00017699,2]
[403767615,1769527839902,-150.0,0.00017699,2]
[403767616,1769527839911,-150.0,0.00017699,2]
[403767617,1769527839921,-150.0,0.00017699,2]
[403767618,1769527839931,-500.0,0.00017699,2]
[403767619,1769527839941,-500.0,0.00017699,2]
[403767620,1769527839957,-150.0,0.00017699,2]
[403767621,1769527839971,-500.0,0.00017699,2]
[403767622,1769527839981,-500.0,0.00017699,2]
[403767623,1769527839991,-500.0,0.00017699,2]
[403767624,1769527840001,-150.0,0.00017699,2]
[403767625,1769527840011,-500.0,0.00017699,2]
[403767626,1769527840021,-500.0,0.00017699,2]
[403767627,1769527840031,-500.0,0.00017699,2]
[403767628,1769527840040,-500.0,0.00017699,2]
[403767629,1769527840050,-150.0,0.00017699,2]
[403767630,1769527840060,-500.0,0.00017699,2]
[403767631,1769527840070,-150.0,0.00017699,2]
[403767632,1769527840080,-500.0,0.00017699,2]
[403767633,1769527840089,-500.0,0.00017699,2]
[403767634,1769527840099,-500.0,0.00017699,2]
[403767635,1769527840108,-500.0,0.00017699,2]
[403767636,1769527840118,-500.0,0.00017699,2]
[403767637,1769527840129,-150.0,0.00017699,2]
[403767638,1769527840140,-500.0,0.00017699,2]
[403767639,1769527840150,-500.0,0.00017699,2]
[403767640,1769527840159,-500.0,0.00017699,2]
[403767641,1769527840169,-150.0,0.00017699,2]
[403767642,1769527840179,-500.0,0.00017699,2]
[403767643,1769527840189,-866.89801555,0.000177,2]
[403767644,1769527840200,-380.0,0.00017705,2]
[403767645,1769527840214,-866.89801547,0.00017722,2]
[403767646,1769527840224,-380.0,0.00017732,2]
[403767647,1769527840234,-250.44555653,0.00017742,2]
[403767648,1769527840244,-866.89801547,0.00017744,2]
[403767649,1769527840255,-500.0,0.00017754,2]
[403767650,1769527840265,-150.0,0.00017754,2]
[403767651,1769527840274,-161.95810683,0.00017754,2]
[403767652,1769527840284,-500.0,0.00017754,2]
[403767653,1769527840294,-150.0,0.00017754,2]
[403767654,1769527840305,-150.76261247,0.00017754,2]
[403767655,1769527840315,-568.740597,0.00017754,2]
[403767656,1769527840324,-150.0,0.00017754,2]
[403767657,1769527840334,-500.0,0.00017754,2]
[403767658,1769527840344,-150.0,0.00017754,2]
[403767659,1769527840354,-500.0,0.00017754,2]
[403767660,1769527840363,-150.0,0.00017754,2]
[403767661,1769527840373,-150.0,0.00017754,2]
[403767662,1769527840385,-150.0,0.00017754,2]
[403767663,1769527840395,-500.0,0.00017754,2]
[403767664,1769527840405,-500.0,0.00017754,2]
[403767665,1769527840414,-150.0,0.00017754,2]
[403767666,1769527840424,-500.0,0.00017754,2]
[403767667,1769527840434,-500.0,0.00017754,2]
[403767668,1769527840444,-500.0,0.00017754,2]
[403767669,1769527840454,-150.0,0.00017754,2]
[403767670,1769527840464,-500.0,0.00017754,2]
[403767671,1769527840474,-500.0,0.00017754,2]
[403767672,1769527840484,-500.0,0.00017754,2]
[403767673,1769527840493,-500.0,0.00017754,2]
[403767674,1769527840503,-150.0,0.00017754,2]
[403767675,1769527840514,-500.0,0.00017754,2]
[403767676,1769527840524,-500.0,0.00017754,2]
[403767677,1769527840534,-500.0,0.00017754,2]
[403767678,1769527840544,-500.0,0.00017754,2]
[403767679,1769527840554,-500.0,0.00017754,2]
[403767680,1769527840564,-500.0,0.00017754,2]
[403767681,1769527840574,-500.0,0.00017754,2]
[403767682,1769527840584,-500.0,0.00017754,2]
[403767683,1769527840594,-500.0,0.00017754,2]
[403767684,1769527840603,-500.0,0.00017754,2]
[403767685,1769527840613,-380.0,0.00017757,2]
[403767686,1769527840623,-866.89801547,0.00017767,2]
[403767687,1769527840632,-866.89801547,0.00017789,2]
[403767688,1769527840643,-487.60595953,0.000178,2]
[403767689,1769527840653,-173.70787061,0.000178,2]
[403767690,1769527840663,-2500.0,0.000178,2]
[403767691,1769527840673,-3962.67377207,0.000178,2]
[403767692,1769527840682,-180.36219639,0.000178,2]
[403767693,1769527840692,-380.0,0.00017801,2]
[403767694,1769527840702,-500.0,0.00017808,2]
[403767695,1769527840712,-500.0,0.00017809,2]
[403767696,1769527840722,-150.0,0.00017809,2]
[403767697,1769527840733,-500.0,0.00017809,2]
[403767698,1769527840743,-150.0,0.00017809,2]
[403767699,1769527840754,-251.7333692,0.00017809,2]
[403767700,1769527840764,-201.72695087,0.00017809,2]
[403767701,1769527840774,-500.0,0.00017809,2]
[403767702,1769527840784,-200.0,0.00017809,2]
[403767703,1769527840794,-150.0,0.00017809,2]
[403767704,1769527840804,-500.0,0.00017809,2]
[403767705,1769527840814,-500.0,0.00017809,2]
[403767706,1769527840823,-150.0,0.00017809,2]
[403767707,1769527840832,-500.0,0.00017809,2]
[403767708,1769527840842,-500.0,0.00017809,2]
[403767709,1769527840851,-500.0,0.00017809,2]
[403767710,1769527840861,-150.71021338,0.00017809,2]
[403767711,1769527840870,-500.0,0.00017809,2]
[403767712,1769527840881,-200.0,0.00017809,2]
[403767713,1769527840891,-500.0,0.00017809,2]
[403767714,1769527840901,-500.0,0.00017809,2]
[403767715,1769527840911,-150.0,0.00017809,2]
[403767716,1769527840921,-500.0,0.00017809,2]
[403767717,1769527840931,-500.0,0.00017809,2]
[403767718,1769527840940,-500.0,0.00017809,2]
[403767719,1769527840950,-500.0,0.00017809,2]
[403767720,1769527840960,-500.0,0.00017809,2]
[403767721,1769527840970,-500.0,0.00017809,2]
[403767722,1769527840980,-500.0,0.00017809,2]
[403767723,1769527840990,-500.0,0.00017809,2]
[403767724,1769527841000,-500.0,0.00017809,2]
[403767725,1769527841010,-500.0,0.00017809,2]
[403767726,1769527841020,-866.89801547,0.00017811,2]
[403767727,1769527841029,-3962.67377205,0.00017811,2]
[403767728,1769527841039,-918.64355495,0.00017814,2]
[403767729,1769527841048,-3962.67377205,0.00017822,2]
[403767730,1769527841059,-866.89801547,0.00017833,2]
[403767731,1769527841069,-3962.67377205,0.00017833,2]
[403767732,1769527841080,-380.0,0.00017836,2]
[403767733,1769527841091,-380.0,0.00017837,2]
[403767734,1769527841100,-380.0,0.00017844,2]
[403767735,1769527841111,-3962.67377205,0.00017844,2]
[403767736,1769527841121,-150.00001761,0.00017855,2]
[403767737,1769527841133,-2343.45,0.00017855,2]
[403767738,1769527841143,-2343.45,0.00017855,2]
[403767739,1769527841153,-2343.45,0.00017855,2]
[403767740,1769527841162,-2343.45,0.00017855,2]
[403767741,1769527841171,-2343.45,0.00017855,2]
[403767742,1769527841181,-2343.45,0.00017855,2]
[403767743,1769527841191,-2343.45,0.00017855,2]
[403767744,1769527841201,-2343.45,0.00017855,2]
[403767745,1769527841212,-2343.45,0.00017855,2]
[403767746,1769527841222,-2343.45,0.00017855,2]
[403767747,1769527841234,-2343.45,0.00017855,2]
[403767748,1769527841243,-2343.45,0.00017855,2]
[403767749,1769527841255,-2343.45,0.00017855,2]
[403767750,1769527841266,-2343.45,0.00017855,2]
[403767751,1769527841277,-2343.45,0.00017855,2]
[403767752,1769527841286,-2343.45,0.00017855,2]
[403767753,1769527841298,-2343.45,0.00017855,2]
[403767754,1769527841308,-2343.45,0.00017855,2]
[403767755,1769527841319,-2343.45,0.00017855,2]
[403767756,1769527841329,-2343.45,0.00017855,2]
[403767757,1769527841339,-2343.45,0.00017855,2]
[403767758,1769527841349,-2343.45,0.00017855,2]
[403767759,1769527841359,-2343.45,0.00017855,2]
[403767760,1769527841368,-2343.48607744,0.00017855,2]
[403767761,1769527841378,-866.89801547,0.00017856,2]
[403767762,1769527841388,-3962.67377205,0.00017856,2]
[403767763,1769527841398,-500.0,0.00017863,2]
[403767764,1769527841408,-631.96376164,0.00017863,2]
[403767765,1769527841418,-296.61694041,0.00017863,2]
[403767766,1769527841428,-500.0,0.00017863,2]
[403767767,1769527841438,-150.0,0.00017863,2]
[403767768,1769527841447,-500.0,0.00017863,2]
[403767769,1769527841457,-200.0,0.00017863,2]
[403767770,1769527841468,-500.0,0.00017863,2]
[403767771,1769527841478,-500.0,0.00017863,2]
[403767772,1769527841487,-158.4322296,0.00017863,2]
[403767773,1769527841498,-500.0,0.00017863,2]
[403767774,1769527841507,-563.64353549,0.00017863,2]
[403767775,1769527841517,-500.0,0.00017863,2]
[403767776,1769527841527,-500.0,0.00017863,2]
[403767777,1769527841537,-500.0,0.00017863,2]
[403767778,1769527841546,-500.0,0.00017863,2]
[403767779,1769527841556,-250.0,0.00017863,2]
[403767780,1769527841566,-500.0,0.00017863,2]
[403767781,1769527841577,-500.0,0.00017863,2]
[403767782,1769527841587,-500.0,0.00017863,2]
[403767783,1769527841598,-500.0,0.00017863,2]
[403767784,1769527841608,-500.0,0.00017863,2]
[403767785,1769527841619,-500.0,0.00017863,2]
[403767786,1769527841633,-500.0,0.00017863,2]
[403767787,1769527841643,-500.0,0.00017863,2]
[403767788,1769527841652,-500.0,0.00017863,2]
[403767789,1769527841662,-500.0,0.00017863,2]
[403767790,1769527841672,-3962.67377205,0.00017867,2]
[403767791,1769527841682,-866.89801547,0.00017878,2]
[403767792,1769527841692,-3962.67377205,0.00017878,2]
[403767793,1769527841702,-3962.67377205,0.00017889,2]
[403767794,1769527841711,-151.0,0.00017897,2]
[403767795,1769527841721,-151.0,0.00017897,2]
[403767796,1769527841731,-151.0,0.00017897,2]
[403767797,1769527841740,-273.07574614,0.00017897,2]
[403767798,1769527841750,-500.0,0.00017899,2]
[403767799,1769527841760,-500.0,0.00017899,2]
[403767800,1769527841770,-500.0,0.00017899,2]
[403767801,1769527841780,-1426.9227,0.000179,2]
[403767802,1769527841789,-1000.0,0.000179,2]
[403767803,1769527841799,-866.89801547,0.000179,2]
[403767804,1769527841808,-6906.8305,0.000179,2]
[403767805,1769527841817,-3962.67377205,0.000179,2]
[403767806,1769527841827,-434.75433566,0.000179,2]
[403767807,1769527841837,-487.0,0.000179,2]
[403767808,1769527841846,-487.0,0.000179,2]
[403767809,1769527841856,-487.0,0.000179,2]
[403767810,1769527841865,-487.0,0.000179,2]
[403767811,1769527841875,-487.0,0.000179,2]
[403767812,1769527841886,-487.0,0.000179,2]
[403767813,1769527841896,-487.0,0.000179,2]
[403767814,1769527841906,-487.0,0.000179,2]
[403767815,1769527841919,-905.46,0.000179,2]
[403767816,1769527841929,-375.19870368,0.00017918,2]
[403767817,1769527841939,-500.0,0.00017918,2]
[403767818,1769527841950,-500.0,0.00017918,2]
[403767819,1769527841959,-500.0,0.00017918,2]
[403767820,1769527841969,-500.0,0.00017918,2]
[403767821,1769527841979,-500.0,0.00017918,2]
[403767822,1769527841990,-500.0,0.00017918,2]
[403767823,1769527841999,-500.0,0.00017918,2]
[403767824,1769527842009,-153.44393732,0.00017918,2]
[403767825,1769527842019,-500.0,0.00017918,2]
[403767826,1769527842032,-500.0,0.00017918,2]
[403767827,1769527842042,-500.0,0.00017918,2]
[403767828,1769527842052,-500.0,0.00017918,2]
[403767829,1769527842062,-500.0,0.00017918,2]
[403767830,1769527842072,-500.0,0.00017918,2]
[403767831,1769527842083,-500.0,0.00017918,2]
[403767832,1769527842093,-500.0,0.00017918,2]
[403767833,1769527842102,-500.0,0.00017918,2]
[403767834,1769527842112,-500.0,0.00017973,2]
[403767835,1769527842122,-500.0,0.00017973,2]
[403767836,1769527842134,-500.0,0.00017973,2]
[403767837,1769527842143,-500.0,0.00017973,2]
[403767838,1769527842153,-500.0,0.00017973,2]
[403767839,1769527842163,-500.0,0.00017973,2]
[403767840,1769527842172,-500.0,0.00017973,2]
[403767841,1769527842182,-500.0,0.00017973,2]
[403767842,1769527842192,-500.0,0.00017973,2]
[403767843,1769527842202,-500.0,0.00017973,2]
[403767844,1769527842215,-500.0,0.00017973,2]
[403767845,1769527842229,-500.0,0.00017973,2]
[403767846,1769527842239,-512.71056971,0.00017973,2]
[403767847,1769527842250,-500.0,0.00017973,2]
[403767848,1769527842259,-500.0,0.00017973,2]
[403767849,1769527842269,-500.0,0.00017973,2]
[403767850,1769527842279,-250.0,0.00017973,2]
[403767851,1769527842289,-166.66,0.00017975,2]
[403767852,1769527842301,-7209.9474148,0.0001798,2]
[403767853,1769527842311,-26061.381132,0.0001798,2]
[403767854,1769527842323,-186.19302321,0.00017999,2]
[403767855,1769527842334,-611190.21612777,0.00018,2]
[403767856,1769527842355,-936.67,0.00018,2]
[403767857,1769527842368,-2473.13499175,0.00018,2]
[403767858,1769527842799,-1783.25015682,0.00018,2]
[403767859,1769527842811,-2465057.48825323,0.00018,2]
[403767860,1769527842820,-439599.33978269,0.00018,2]
[403767861,1769527842830,-151.0,0.00018,2]
[403767862,1769527842839,-1003.85001295,0.00018,2]
[403767863,1769527842849,-151.0,0.00018,2]
[403767864,1769527842858,-151.0,0.00018,2]
[403767865,1769527842868,-151.0,0.00018,2]
[403767866,1769527842879,-151.0,0.00018,2]
[403767867,1769527842888,-151.0,0.00018,2]
[403767868,1769527842898,-151.0,0.00018,2]
[403767869,1769527842907,-1068985.2882489,0.00018,2]
[403767870,1769527842919,-441.835,0.00018,2]
[403767871,1769527842934,-1553.73338953,0.00018,2]
[403767872,1769527842946,-586.80897448,0.00018,2]
[403767877,1769527843229,-1.7e-07,0.00018,2]
[403767886,1769527843525,-917.3613778,0.00018,2]
[403767887,1769527843538,-783.07770613,0.00018,2]
[403767888,1769527843550,-654.62163137,0.00018,2]
[403767889,1769527843561,-520.33099581,0.00018,2]
[403767890,1769527843572,-3478.0984,0.00018,2]
[403767891,1769527843670,-1016.65390737,0.00018,2]
[403767898,1769527846628,-630.21210057,0.00018,2]
[403767899,1769527846640,-302.6795128,0.00018,2]
[403767900,1769527846652,-262.9,0.00018,2]
[403767901,1769527846664,-8765.83089648,0.00018,2]
[403767902,1769527846675,-439.92685002,0.00018,2]
[403767903,1769527846708,-264.58499995,0.00018,2]
[403768111,1769528122684,500.0,0.00014999,2]
[403768112,1769528122717,473.26667094,0.00014999,2]
[403768113,1769528122770,500.0,0.00014999,2]
[403768114,1769528122831,500.0,0.00014999,2]
[403768115,1769528122882,500.0,0.00014999,2]
[403768116,1769528123073,500.0,0.00014999,2]
[403768117,1769528123127,500.0,0.00014999,2]
[403768118,1769528123184,404.12725275,0.00014999,2]
[403768120,1769528149104,200.0,0.000159,5]
[403768124,1769528192855,6122.61607631,0.000152,2]
[403768125,1769528192879,10000.01,0.000152,2]
[403768126,1769528192907,10000.01,0.000152,2]
[403768127,1769528192929,10000.01,0.000152,2]
[403768128,1769528192953,2517.35392369,0.000152,2]
[403768131,1769528239902,505.0,0.00021,30]
[403768132,1769528242688,164.9343415,0.00015,7]
[403768133,1769528255157,5532.0,0.000158,3]
[403768134,1769528400265,28142.7,0.00015148,2]
[403768139,1769528567122,150.0,0.00014799,2]
[403768140,1769528575953,165.6567796,0.000152,2]
[403768143,1769528675619,200.0,0.00014798,2]
[403768144,1769528684432,8618.77,0.00012054,2]
[403768146,1769528707987,1639.0,0.000139,2]
[403768147,1769528779821,5546.396573,0.00021,30]
[403768149,1769528843392,200.0,0.000158,5]
[403768150,1769528845515,500.0,0.000159,5]
[403768152,1769528865757,2941.73,0.00014858,2]
[403768154,1769528959309,1102.36,0.00014849,2]
[403768156,1769529013719,1664.11,0.00014796,2]
[403768157,1769529032313,-245.38,0.000153,2]
[403768158,1769529032324,-180.00434459,0.000153,2]
[403768159,1769529032333,-195.0,0.000153,2]
[403768160,1769529032343,-250.0,0.000153,2]
[403768161,1769529032352,-195.0,0.000153,2]
[403768162,1769529032362,-195.0,0.000153,2]
[403768163,1769529032371,-600.0,0.000153,2]
[403768164,1769529032380,-250.0,0.00015301,2]
[403768165,1769529032390,-1200.0,0.00015316,2]
[403768166,1769529032401,-300.0,0.00015316,2]
[403768167,1769529032411,-300.0,0.00015316,2]
[403768168,1769529032421,-500.0,0.00015317,2]
[403768169,1769529032430,-151.0,0.00015317,2]
[403768170,1769529032440,-151.0,0.00015317,2]
[403768171,1769529032450,-151.0,0.00015317,2]
[403768172,1769529032459,-151.0,0.00015317,2]
[403768173,1769529032469,-151.0,0.00015317,2]
[403768174,1769529032479,-151.0,0.00015317,2]
[403768175,1769529032489,-151.0,0.00015317,2]
[403768176,1769529032498,-151.0,0.00015317,2]
[403768177,1769529032508,-151.0,0.00015317,2]
[403768178,1769529032517,-151.0,0.00015317,2]
[403768179,1769529032526,-151.0,0.00015317,2]
[403768180,1769529032536,-151.0,0.00015317,2]
[403768181,1769529032545,-558.39813726,0.00015325,2]
[403768182,1769529032554,-2182.7720767,0.00015326,2]
[403768183,1769529032568,-5091.21307187,0.00015326,2]
[403768184,1769529032607,-2992.09485143,0.00015326,2]
[403768185,1769529032616,-190.17,0.00015426,2]
[403768186,1769529032626,-338.75889834,0.00015497,2]
[403768187,1769529032640,-10589.47185107,0.00015497,2]
[403768190,1769529040485,-300.6,0.00015497,2]
[403768191,1769529040588,-988771.16925059,0.00015497,2]
[403768192,1769529040601,-300.0,0.00015596,2]
[403768193,1769529040615,-193.033,0.00015597,2]
[403768194,1769529040628,-1000.0,0.00015597,2]
[403768195,1769529040641,-1000.0,0.00015597,2]
[403768196,1769529040654,-1000.0,0.00015597,2]
[403768197,1769529040666,-1000.0,0.00015597,2]
[403768198,1769529040679,-1000.0,0.00015597,2]
[403768199,1769529040690,-1000.0,0.00015597,2]
[403768201,1769529040702,-1000.0,0.00015597,2]
[403768203,1769529040715,-1000.0,0.00015597,2]
[403768205,1769529040727,-151.0,0.00015712,2]
[403768207,1769529040738,-151.0,0.00015712,2]
[403768209,1769529040752,-151.0,0.00015712,2]
[403768210,1769529040763,-151.0,0.00015712,2]
[403768212,1769529040773,-151.0,0.00015712,2]
[403768213,1769529040785,-234.24,0.00015712,2]
[403768214,1769529040795,-151.0,0.00015715,2]
[403768215,1769529040809,-151.0,0.00015722,2]
[403768216,1769529040821,-500.0,0.00015865,2]
[403768217,1769529040833,-190.17,0.00015888,2]
[403768218,1769529040845,-1000.0,0.00015918,2]
[403768219,1769529040856,-284.02,0.0001593,2]
[403768220,1769529040868,-500.0,0.0001593,2]
[403768221,1769529040880,-500.0,0.0001593,2]
[403768222,1769529040892,-500.0,0.0001593,2]
[403768223,1769529040904,-500.0,0.0001593,2]
[403768224,1769529040915,-500.0,0.0001593,2]
[403768225,1769529040927,-500.0,0.0001593,2]
[403768226,1769529040938,-500.0,0.0001593,2]
[403768227,1769529040950,-500.0,0.0001593,2]
[403768228,1769529040961,-500.0,0.0001593,2]
[403768229,1769529040973,-1000.0,0.0001593,2]
[403768230,1769529040985,-500.0,0.0001593,2]
[403768231,1769529040998,-1000.0,0.0001593,2]
[403768232,1769529041010,-500.0,0.0001593,2]
[403768233,1769529041024,-201.93286099,0.0001593,2]
[403768234,1769529041036,-500.0,0.0001593,2]
[403768235,1769529041048,-500.0,0.0001593,2]
[403768236,1769529041061,-500.0,0.0001593,2]
[403768237,1769529041074,-500.0,0.0001593,2]
[403768239,1769529041088,-500.0,0.0001593,2]
[403768241,1769529041100,-500.0,0.0001593,2]
[403768243,1769529041113,-500.0,0.0001593,2]
[403768245,1769529041126,-500.0,0.0001593,2]
[403768247,1769529041140,-250.0,0.0001593,2]
[403768248,1769529041153,-1000.0,0.0001593,2]
[403768249,1769529041168,-414.75586271,0.0001593,2]
[403768250,1769529041183,-444.48992459,0.0001593,2]
[403768251,1769529041197,-250.0,0.0001593,2]
[403768252,1769529041209,-500.0,0.0001593,2]
[403768253,1769529041221,-250.0,0.0001593,2]
[403768254,1769529041233,-250.0,0.0001593,2]
[403768255,1769529041245,-250.0,0.0001593,2]
[403768256,1769529041256,-250.0,0.0001593,2]
[403768257,1769529041269,-250.0,0.0001593,2]
[403768258,1769529041280,-250.0,0.0001593,2]
[403768260,1769529041291,-250.0,0.0001593,2]
[403768262,1769529041302,-250.0,0.0001593,2]
[403768264,1769529041313,-250.0,0.0001593,2]
[403768266,1769529041323,-250.0,0.0001593,2]
[403768268,1769529041335,-322.6107,0.0001593,2]
[403768270,1769529041346,-250.0,0.0001593,2]
[403768272,1769529041357,-250.0,0.0001593,2]
[403768274,1769529041369,-250.0,0.0001593,2]
[403768277,1769529041382,-823.77908852,0.0001593,2]
[403768279,1769529041394,-4739.787,0.00015977,2]
[403768281,1769529041406,-331.343,0.00015977,2]
[403768283,1769529041417,-2500.0,0.00015977,2]
[403768285,1769529041428,-3373.6156,0.00015977,2]
[403768287,1769529041440,-209.40437684,0.00015985,2]
[403768290,1769529041451,-287.83520275,0.00015995,2]
[403768292,1769529041462,-311.94059306,0.00016002,2]
[403768294,1769529041473,-575.56538641,0.00016023,2]
[403768296,1769529041487,-217.15233878,0.0001604,2]
[403768298,1769529041498,-151.0,0.00016074,2]
[403768300,1769529041509,-243.29239724,0.00016076,2]
[403768302,1769529041521,-1074.83613347,0.00016076,5]
[403768304,1769529041531,-1074.83613347,0.00016076,5]
[403768306,1769529041542,-290.61766379,0.00016076,2]
[403768308,1769529041553,-500.0,0.00016076,2]
[403768310,1769529041565,-500.0,0.00016076,2]
[403768312,1769529041575,-500.0,0.00016076,2]